[Event "*** Titled Tuesday Blitz"]
[Site "Chess.com"]
[Date "2020.11.24"]
[Round "3"]
[White "JonahWillow"]
[Black "BogdanDeac"]
[Result "0-1"]
[WhiteElo "2658"]
[BlackElo "2896"]
[TimeControl "180+1"]
[EndTime "10:47:38 PST"]
[Termination "BogdanDeac won by resignation"]

1. e4 {[%clk 0:03:00.9]} 1... c5 {[%clk 0:02:59.5]} 2. Nf3 {[%clk 0:03:00.9]}
2... d6 {[%clk 0:02:59.9]} 3. d4 {[%clk 0:03:00.8]} 3... cxd4 {[%clk 0:03:00.5]}
4. Qxd4 {[%clk 0:03:01.7]} 4... Bd7 {[%clk 0:02:58.3]} 5. c4 {[%clk 0:03:01.1]}
5... Nc6 {[%clk 0:02:57.6]} 6. Qe3 {[%clk 0:02:59.5]} 6... g6 {[%clk 0:02:57.7]}
7. h3 {[%clk 0:02:59.7]} 7... Qa5+ {[%clk 0:02:29.1]} 8. Bd2 {[%clk 0:02:52.6]}
8... Qc5 {[%clk 0:02:26.8]} 9. Nc3 {[%clk 0:02:50.9]} 9... Bg7 {[%clk
0:02:22.6]} 10. Be2 {[%clk 0:02:47.4]} 10... Qxe3 {[%clk 0:02:18.8]} 11. Bxe3
{[%clk 0:02:45.6]} 11... Bxc3+ {[%clk 0:02:18.7]} 12. bxc3 {[%clk 0:02:46.5]}
12... Nf6 {[%clk 0:02:18.7]} 13. Bd3 {[%clk 0:02:43.2]} 13... b6 {[%clk
0:02:15]} 14. O-O {[%clk 0:02:36]} 14... Rc8 {[%clk 0:02:13.6]} 15. Nd2 {[%clk
0:02:32.5]} 15... Na5 {[%clk 0:02:07.1]} 16. f4 {[%clk 0:02:30.7]} 16... Be6
{[%clk 0:02:06.1]} 17. Bd4 {[%clk 0:01:50.5]} 17... Nxc4 {[%clk 0:01:49.7]} 18.
Nxc4 {[%clk 0:01:47.3]} 18... Bxc4 {[%clk 0:01:48.7]} 19. Bxc4 {[%clk
0:01:32.3]} 19... Rxc4 {[%clk 0:01:47.9]} 20. a4 {[%clk 0:01:27.2]} 20... O-O
{[%clk 0:01:25.9]} 21. Bxf6 {[%clk 0:01:22.5]} 21... exf6 {[%clk 0:01:25.4]} 22.
a5 {[%clk 0:01:23.4]} 22... b5 {[%clk 0:01:16.8]} 23. Rfd1 {[%clk 0:01:20.2]}
23... Rd8 {[%clk 0:00:23.6]} 24. Rd5 {[%clk 0:01:16.7]} 24... a6 {[%clk
0:00:17.3]} 25. e5 {[%clk 0:01:10.8]} 25... fxe5 {[%clk 0:00:16.2]} 26. fxe5
{[%clk 0:01:11.2]} 26... Rxc3 {[%clk 0:00:15.9]} 27. exd6 {[%clk 0:01:11.2]}
27... Kf8 {[%clk 0:00:14.1]} 28. d7 {[%clk 0:01:10.2]} 28... Rc6 {[%clk
0:00:13.7]} 29. Rad1 {[%clk 0:01:05.5]} 29... Ke7 {[%clk 0:00:13.9]} 30. Kf2
{[%clk 0:01:04]} 30... b4 {[%clk 0:00:10.4]} 31. Kf3 {[%clk 0:01:02.8]} 31... b3
{[%clk 0:00:08.7]} 32. Kf4 {[%clk 0:00:59.3]} 32... Rc4+ {[%clk 0:00:05.9]} 33.
Kf3 {[%clk 0:00:54.8]} 33... b2 {[%clk 0:00:06.1]} 34. Re1+ {[%clk 0:00:54.2]}
34... Kf8 {[%clk 0:00:05.7]} 35. Rb1 {[%clk 0:00:54]} 35... Rb4 {[%clk
0:00:05.9]} 36. Rd2 {[%clk 0:00:52.2]} 36... Rb3+ {[%clk 0:00:06.2]} 37. Kf4
{[%clk 0:00:50.3]} 37... Rb5 {[%clk 0:00:05.9]} 38. Rbxb2 {[%clk 0:00:43.2]}
38... Rxa5 {[%clk 0:00:04.3]} 39. Rb1 {[%clk 0:00:39]} 39... Rf5+ {[%clk
0:00:03.8]} 40. Kg4 {[%clk 0:00:38.8]} 40... h5+ {[%clk 0:00:03.4]} 41. Kg3
{[%clk 0:00:39.4]} 41... Rc5 {[%clk 0:00:03.6]} 42. Ra1 {[%clk 0:00:37.6]} 42...
a5 {[%clk 0:00:03.8]} 43. Kf4 {[%clk 0:00:36.3]} 43... Ke7 {[%clk 0:00:03.8]}
44. Re1+ {[%clk 0:00:35.6]} 44... Kf8 {[%clk 0:00:04.2]} 45. Ra1 {[%clk
0:00:36.1]} 45... Rf5+ {[%clk 0:00:04.4]} 46. Kg3 {[%clk 0:00:35.5]} 46... Rb5
{[%clk 0:00:05]} 47. Kf4 {[%clk 0:00:35.6]} 47... Ke7 {[%clk 0:00:04.8]} 48.
Re1+ {[%clk 0:00:35.5]} 48... Kf8 {[%clk 0:00:05.2]} 49. Ra1 {[%clk 0:00:36.1]}
49... Rc5 {[%clk 0:00:05.7]} 50. Kg3 {[%clk 0:00:35.4]} 50... Kg7 {[%clk
0:00:06]} 51. Kf4 {[%clk 0:00:35.7]} 51... Kf6 {[%clk 0:00:06.2]} 52. Kg3 {[%clk
0:00:34.6]} 52... Re5 {[%clk 0:00:06.3]} 53. Rb1 {[%clk 0:00:24.4]} 53... a4
{[%clk 0:00:04.6]} 54. Rb6+ {[%clk 0:00:17]} 54... Re6 {[%clk 0:00:04.9]} 55.
Rb4 {[%clk 0:00:15.9]} 55... Ra6 {[%clk 0:00:04.6]} 56. Rf4+ {[%clk 0:00:13.3]}
56... Kg7 {[%clk 0:00:04.5]} 57. Rff2 {[%clk 0:00:10.3]} 57... a3 {[%clk
0:00:04.3]} 58. Rfe2 {[%clk 0:00:10.9]} 58... Ra7 {[%clk 0:00:04.2]} 59. Ra2
{[%clk 0:00:06.1]} 59... Rdxd7 {[%clk 0:00:03.9]} 60. Re3 {[%clk 0:00:06.8]}
60... h4+ {[%clk 0:00:03.3]} 61. Kxh4 {[%clk 0:00:04.4]} 61... Rd4+ {[%clk
0:00:03.4]} 62. Kg3 {[%clk 0:00:05.1]} 62... Rda4 {[%clk 0:00:04.3]} 63. Rb3
{[%clk 0:00:05]} 63... f5 {[%clk 0:00:04.5]} 64. Kf3 {[%clk 0:00:05.4]} 64...
Kf6 {[%clk 0:00:04.8]} 65. g3 {[%clk 0:00:05.5]} 65... R7a6 {[%clk 0:00:04.8]}
66. Rc3 {[%clk 0:00:05.4]} 66... g5 {[%clk 0:00:05.2]} 67. Rb3 {[%clk
0:00:05.2]} 67... Ke5 {[%clk 0:00:05.2]} 68. Rb5+ {[%clk 0:00:05.4]} 68... Ke6
{[%clk 0:00:05.1]} 69. Rb3 {[%clk 0:00:05.6]} 69... R6a5 {[%clk 0:00:05.4]} 70.
Rd3 {[%clk 0:00:04.4]} 70... Ke5 {[%clk 0:00:05.4]} 71. Re2+ {[%clk 0:00:04.6]}
71... Re4 {[%clk 0:00:05.3]} 72. Ra2 {[%clk 0:00:05.5]} 72... g4+ {[%clk
0:00:05.3]} 73. hxg4 {[%clk 0:00:05.6]} 73... fxg4+ {[%clk 0:00:06.2]} 74. Kf2
{[%clk 0:00:06.3]} 74... Rea4 {[%clk 0:00:06]} 75. Re2+ {[%clk 0:00:06.9]} 75...
Kf5 {[%clk 0:00:06.2]} 76. Ra2 {[%clk 0:00:07.8]} 76... Ra6 {[%clk 0:00:06.5]}
77. Rd5+ {[%clk 0:00:06.8]} 77... Ke4 {[%clk 0:00:06.4]} 78. Rdd2 {[%clk
0:00:06.4]} 78... R6a5 {[%clk 0:00:05.7]} 79. Re2+ {[%clk 0:00:06.4]} 79... Kd5
{[%clk 0:00:06]} 80. Re3 {[%clk 0:00:03.7]} 80... Kd4 {[%clk 0:00:05.7]} 81. Rb3
{[%clk 0:00:02.4]} 81... Kc4 {[%clk 0:00:05.4]} 82. Re3 {[%clk 0:00:02.9]} 82...
Kd4 {[%clk 0:00:05.7]} 83. Rb3 {[%clk 0:00:03.1]} 83... Ra6 {[%clk 0:00:06]} 84.
Kg2 {[%clk 0:00:02.7]} 84... Kc4 {[%clk 0:00:05.7]} 85. Re3 {[%clk 0:00:03.1]}
85... Kd4 {[%clk 0:00:05.9]} 86. Rb3 {[%clk 0:00:03.2]} 86... Ra7 {[%clk
0:00:06.2]} 87. Kf2 {[%clk 0:00:03.7]} 87... Kc4 {[%clk 0:00:06.2]} 88. Re3
{[%clk 0:00:03.9]} 88... Kb4 {[%clk 0:00:06.6]} 89. Re4+ {[%clk 0:00:04]} 89...
Kb3 {[%clk 0:00:06.7]} 90. Ree2 {[%clk 0:00:04.5]} 90... Rc7 {[%clk 0:00:06.6]}
91. Kg2 {[%clk 0:00:04.2]} 91... Rc3 {[%clk 0:00:06.8]} 92. Kf2 {[%clk
0:00:04.7]} 92... Rf3+ {[%clk 0:00:06.7]} 93. Kg2 {[%clk 0:00:05]} 93... Rc3
{[%clk 0:00:07]} 94. Kf2 {[%clk 0:00:05.3]} 94... Rc1 {[%clk 0:00:07.3]} 95. Kg2
{[%clk 0:00:05.4]} 95... Ra5 {[%clk 0:00:06.7]} 96. Kf2 {[%clk 0:00:05.3]} 96...
Rb1 {[%clk 0:00:06.9]} 97. Kg2 {[%clk 0:00:04.4]} 97... Ra4 {[%clk 0:00:05.4]}
98. Kf2 {[%clk 0:00:03.5]} 98... Rb2 {[%clk 0:00:05.7]} 99. Raxb2+ {[%clk
0:00:01.7]} 99... axb2 {[%clk 0:00:05.9]} 100. Re3+ {[%clk 0:00:02.6]} 100...
Ka2 {[%clk 0:00:06.2]} 101. Re2 {[%clk 0:00:03.5]} 101... Ka1 {[%clk 0:00:06.5]}
0-1

[Event "*** Titled Tuesday Blitz"]
[Site "Chess.com"]
[Date "2020.11.24"]
[Round "4"]
[White "Kretov_Evgenij"]
[Black "Taktikmonster"]
[Result "1-0"]
[WhiteElo "2453"]
[BlackElo "2150"]
[TimeControl "180+1"]
[EndTime "10:51:27 PST"]
[Termination "Kretov_Evgenij won by checkmate"]

1. d4 {[%clk 0:03:00.9]} 1... Nf6 {[%clk 0:02:55.3]} 2. c4 {[%clk 0:03:00.8]}
2... e6 {[%clk 0:02:54.7]} 3. Nc3 {[%clk 0:03:00.7]} 3... Bb4 {[%clk 0:02:54.4]}
4. Bg5 {[%clk 0:03:01.3]} 4... c5 {[%clk 0:02:51.2]} 5. d5 {[%clk 0:03:01]} 5...
b5 {[%clk 0:02:50.5]} 6. e3 {[%clk 0:03:00.7]} 6... h6 {[%clk 0:02:34.1]} 7. Bh4
{[%clk 0:03:00.3]} 7... g5 {[%clk 0:02:33.9]} 8. Bg3 {[%clk 0:03:00.5]} 8... Ne4
{[%clk 0:02:30.8]} 9. Be5 {[%clk 0:03:00.4]} 9... f6 {[%clk 0:02:28]} 10. Qc2
{[%clk 0:03:00.7]} 10... Nxc3 {[%clk 0:02:20.1]} 11. bxc3 {[%clk 0:03:00.2]}
11... Ba5 {[%clk 0:02:10.6]} 12. Qg6+ {[%clk 0:02:59.9]} 12... Ke7 {[%clk
0:01:41.4]} 13. d6+ {[%clk 0:02:56]} 13... Kf8 {[%clk 0:01:40.7]} 14. Bxf6
{[%clk 0:02:56.2]} 14... Bxc3+ {[%clk 0:01:25.2]} 15. Bxc3 {[%clk 0:02:53.8]}
15... Rg8 {[%clk 0:01:24.4]} 16. Qxh6+ {[%clk 0:02:53.6]} 16... Ke8 {[%clk
0:01:23.2]} 17. Nf3 {[%clk 0:02:43.1]} 17... Nc6 {[%clk 0:01:15.8]} 18. cxb5
{[%clk 0:02:38]} 18... Nb4 {[%clk 0:01:11.7]} 19. Ne5 {[%clk 0:02:36.8]} 19...
Nc2+ {[%clk 0:00:58.2]} 20. Kd2 {[%clk 0:02:35.4]} 20... Nxa1 {[%clk 0:00:55.9]}
21. Qh5+ {[%clk 0:02:35.3]} 21... Kf8 {[%clk 0:00:56.4]} 22. Qf7# {[%clk
0:02:35.2]} 1-0

[Event "*** Titled Tuesday Blitz"]
[Site "Chess.com"]
[Date "2020.11.24"]
[Round "4"]
[White "Teo2000"]
[Black "parintele_chess"]
[Result "1-0"]
[WhiteElo "2431"]
[BlackElo "2204"]
[TimeControl "180+1"]
[EndTime "10:51:27 PST"]
[Termination "Teo2000 won by resignation"]

1. e4 {[%clk 0:03:00.9]} 1... g6 {[%clk 0:02:58.5]} 2. h4 {[%clk 0:03:00.6]}
2... h5 {[%clk 0:02:57.9]} 3. Bc4 {[%clk 0:02:58.3]} 3... Bg7 {[%clk 0:02:55]}
4. Nc3 {[%clk 0:02:58.1]} 4... c5 {[%clk 0:02:54.7]} 5. d3 {[%clk 0:02:55.8]}
5... Nc6 {[%clk 0:02:53.5]} 6. Nge2 {[%clk 0:02:55.6]} 6... d6 {[%clk
0:02:53.4]} 7. Be3 {[%clk 0:02:54.7]} 7... Nd4 {[%clk 0:02:52.9]} 8. Qd2 {[%clk
0:02:48.5]} 8... Bg4 {[%clk 0:02:51.2]} 9. f3 {[%clk 0:02:39.1]} 9... Bxf3
{[%clk 0:02:50.8]} 10. Bxf7+ {[%clk 0:02:28.5]} 10... Kxf7 {[%clk 0:02:44.5]}
11. Rf1 {[%clk 0:02:28]} 11... e5 {[%clk 0:02:37]} 12. O-O-O {[%clk 0:02:24.8]}
12... Qxh4 {[%clk 0:02:32.7]} 13. gxf3 {[%clk 0:02:19.9]} 13... Nf6 {[%clk
0:02:30.4]} 14. f4 {[%clk 0:02:17.6]} 14... Rhd8 {[%clk 0:02:05.9]} 15. fxe5
{[%clk 0:02:06.8]} 15... dxe5 {[%clk 0:02:06.6]} 16. Bg5 {[%clk 0:02:06.7]}
16... Qh2 {[%clk 0:01:55.1]} 17. Nxd4 {[%clk 0:02:05.9]} 17... cxd4 {[%clk
0:01:46.8]} 18. Qxh2 {[%clk 0:02:04.6]} 1-0

[Event "*** Titled Tuesday Blitz"]
[Site "Chess.com"]
[Date "2020.11.24"]
[Round "4"]
[White "keepitcool9499"]
[Black "pooh2012"]
[Result "0-1"]
[WhiteElo "2616"]
[BlackElo "2487"]
[TimeControl "180+1"]
[EndTime "10:52:36 PST"]
[Termination "pooh2012 won by resignation"]

1. d4 {[%clk 0:03:00.9]} 1... Nf6 {[%clk 0:02:58.8]} 2. c4 {[%clk 0:02:51.8]}
2... e6 {[%clk 0:02:57.5]} 3. Nc3 {[%clk 0:02:52.7]} 3... Bb4 {[%clk 0:02:56.4]}
4. Bd2 {[%clk 0:02:52.8]} 4... O-O {[%clk 0:02:55.8]} 5. Nf3 {[%clk 0:02:51.9]}
5... c5 {[%clk 0:02:54.6]} 6. e3 {[%clk 0:02:52.2]} 6... d6 {[%clk 0:02:48.4]}
7. a3 {[%clk 0:02:51]} 7... Ba5 {[%clk 0:02:43.5]} 8. Bd3 {[%clk 0:02:46.1]}
8... Nc6 {[%clk 0:02:32.1]} 9. O-O {[%clk 0:02:40.3]} 9... e5 {[%clk 0:02:12]}
10. d5 {[%clk 0:02:36.2]} 10... Ne7 {[%clk 0:02:04.3]} 11. e4 {[%clk 0:02:24.1]}
11... Ng6 {[%clk 0:01:57]} 12. g3 {[%clk 0:02:22.4]} 12... Bg4 {[%clk
0:01:43.6]} 13. Nb1 {[%clk 0:02:06.2]} 13... Bxd2 {[%clk 0:01:26]} 14. Nbxd2
{[%clk 0:02:07.1]} 14... h5 {[%clk 0:01:24.4]} 15. h4 {[%clk 0:02:03.4]} 15...
Nh7 {[%clk 0:01:07.4]} 16. Qb3 {[%clk 0:01:51.5]} 16... Qf6 {[%clk 0:00:58.6]}
17. Nh2 {[%clk 0:01:48.5]} 17... Bh3 {[%clk 0:00:52.4]} 18. Rfe1 {[%clk
0:01:48.8]} 18... Nxh4 {[%clk 0:00:46.7]} 19. gxh4 {[%clk 0:01:42.2]} 19... Qg6+
{[%clk 0:00:40.3]} 0-1

[Event "*** Titled Tuesday Blitz"]
[Site "Chess.com"]
[Date "2020.11.24"]
[Round "4"]
[White "Iskusnyh"]
[Black "Nara_Kh"]
[Result "1-0"]
[WhiteElo "2580"]
[BlackElo "2382"]
[TimeControl "180+1"]
[EndTime "10:52:36 PST"]
[Termination "Iskusnyh won by resignation"]

1. d4 {[%clk 0:03:00.9]} 1... d5 {[%clk 0:02:59.1]} 2. c4 {[%clk 0:03:01.4]}
2... c6 {[%clk 0:02:59.5]} 3. Nf3 {[%clk 0:03:01.4]} 3... Nf6 {[%clk 0:02:59.6]}
4. e3 {[%clk 0:03:01]} 4... Bf5 {[%clk 0:02:58.4]} 5. Nc3 {[%clk 0:03:00.5]}
5... a6 {[%clk 0:02:58.4]} 6. Bd2 {[%clk 0:02:57.6]} 6... e6 {[%clk 0:02:54.7]}
7. Nh4 {[%clk 0:02:56.9]} 7... Bg4 {[%clk 0:02:43.8]} 8. Qb3 {[%clk 0:02:55.5]}
8... b5 {[%clk 0:02:29.7]} 9. cxd5 {[%clk 0:02:34.3]} 9... cxd5 {[%clk
0:02:16.1]} 10. Rc1 {[%clk 0:02:33]} 10... Nfd7 {[%clk 0:01:07]} 11. Nf3 {[%clk
0:02:16.1]} 11... Qb6 {[%clk 0:01:03.7]} 12. Nxd5 {[%clk 0:02:00.3]} 12... exd5
{[%clk 0:00:42.9]} 13. Rc8+ {[%clk 0:01:59.2]} 13... Ke7 {[%clk 0:00:40.9]} 14.
Qxd5 {[%clk 0:01:57.3]} 14... Ra7 {[%clk 0:00:25.7]} 15. Bb4+ {[%clk 0:01:53.3]}
1-0

[Event "*** Titled Tuesday Blitz"]
[Site "Chess.com"]
[Date "2020.11.24"]
[Round "4"]
[White "Triumphmate"]
[Black "esteban062000"]
[Result "1-0"]
[WhiteElo "2432"]
[BlackElo "2196"]
[TimeControl "180+1"]
[EndTime "10:52:50 PST"]
[Termination "Triumphmate won by resignation"]

1. e4 {[%clk 0:03:00.9]} 1... c5 {[%clk 0:02:58.3]} 2. Nf3 {[%clk 0:03:01.3]}
2... g6 {[%clk 0:02:57.9]} 3. d4 {[%clk 0:03:01.5]} 3... cxd4 {[%clk 0:02:58.8]}
4. Nxd4 {[%clk 0:03:01.7]} 4... Nc6 {[%clk 0:02:58.9]} 5. f4 {[%clk 0:02:54.9]}
5... Bg7 {[%clk 0:02:54.4]} 6. Nf3 {[%clk 0:02:55.2]} 6... d6 {[%clk 0:02:51.3]}
7. Nc3 {[%clk 0:02:53.6]} 7... Nf6 {[%clk 0:02:49]} 8. Bd3 {[%clk 0:02:49.3]}
8... O-O {[%clk 0:02:48.2]} 9. O-O {[%clk 0:02:46.5]} 9... Bg4 {[%clk
0:02:43.1]} 10. Qe1 {[%clk 0:02:45.7]} 10... Rc8 {[%clk 0:02:29.8]} 11. Kh1
{[%clk 0:02:44.4]} 11... Nb4 {[%clk 0:02:23.2]} 12. Bd2 {[%clk 0:02:37.9]} 12...
Nxd3 {[%clk 0:02:17.1]} 13. cxd3 {[%clk 0:02:38.8]} 13... Nd7 {[%clk 0:02:15.1]}
14. Qh4 {[%clk 0:02:37.2]} 14... Bxf3 {[%clk 0:02:11.9]} 15. Rxf3 {[%clk
0:02:38.1]} 15... e6 {[%clk 0:02:02.1]} 16. Qf2 {[%clk 0:02:37.1]} 16... Qb6
{[%clk 0:01:44.6]} 17. Be3 {[%clk 0:02:35.3]} 17... Nc5 {[%clk 0:01:43.3]} 18.
Rh3 {[%clk 0:02:30.5]} 18... Qd8 {[%clk 0:01:16.8]} 19. Bd2 {[%clk 0:02:25.3]}
19... h5 {[%clk 0:01:06.2]} 20. Rf1 {[%clk 0:02:23.4]} 20... Qf6 {[%clk
0:00:59.1]} 21. f5 {[%clk 0:02:14.8]} 21... exf5 {[%clk 0:00:50.9]} 22. Nd5
{[%clk 0:02:14.6]} 22... Qxb2 {[%clk 0:00:39.9]} 23. exf5 {[%clk 0:02:13.5]}
23... Rce8 {[%clk 0:00:34.5]} 24. f6 {[%clk 0:02:10.7]} 24... Bh8 {[%clk
0:00:28.6]} 25. Ne7+ {[%clk 0:02:10.4]} 25... Rxe7 {[%clk 0:00:14.5]} 26. fxe7
{[%clk 0:02:11.3]} 26... Kh7 {[%clk 0:00:13.3]} 27. exf8=Q {[%clk 0:02:10.3]}
1-0

[Event "*** Titled Tuesday Blitz"]
[Site "Chess.com"]
[Date "2020.11.24"]
[Round "4"]
[White "GigaQuparadze"]
[Black "Taron_Shagbazyan"]
[Result "1-0"]
[WhiteElo "2853"]
[BlackElo "2724"]
[TimeControl "180+1"]
[EndTime "10:52:54 PST"]
[Termination "GigaQuparadze won by resignation"]

1. e4 {[%clk 0:03:00.9]} 1... Nf6 {[%clk 0:02:59.7]} 2. e5 {[%clk 0:02:59.2]}
2... Nd5 {[%clk 0:03:00.1]} 3. Nf3 {[%clk 0:02:59.8]} 3... d6 {[%clk 0:03:00.1]}
4. d4 {[%clk 0:02:58.7]} 4... Bg4 {[%clk 0:02:58.5]} 5. Be2 {[%clk 0:02:56.7]}
5... c6 {[%clk 0:02:58]} 6. O-O {[%clk 0:02:56]} 6... e6 {[%clk 0:02:56.9]} 7.
c4 {[%clk 0:02:54.9]} 7... Nc7 {[%clk 0:02:56.1]} 8. Bf4 {[%clk 0:02:51.9]} 8...
d5 {[%clk 0:02:49.5]} 9. c5 {[%clk 0:02:50.2]} 9... Be7 {[%clk 0:02:48]} 10. Nc3
{[%clk 0:02:49.2]} 10... O-O {[%clk 0:02:40.1]} 11. b4 {[%clk 0:02:49.2]} 11...
Nd7 {[%clk 0:02:28.4]} 12. Re1 {[%clk 0:02:48.7]} 12... h6 {[%clk 0:02:03.6]}
13. h3 {[%clk 0:02:47.5]} 13... Bf5 {[%clk 0:02:03.7]} 14. Bh2 {[%clk
0:02:43.5]} 14... Bh7 {[%clk 0:01:58.7]} 15. Bd3 {[%clk 0:02:43.4]} 15... a5
{[%clk 0:01:52.2]} 16. Bxh7+ {[%clk 0:02:42.3]} 16... Kxh7 {[%clk 0:01:53.1]}
17. b5 {[%clk 0:02:42.5]} 17... cxb5 {[%clk 0:01:46.8]} 18. Nxb5 {[%clk
0:02:41.9]} 18... g6 {[%clk 0:01:40.8]} 19. Nd6 {[%clk 0:02:41.1]} 19... Ra7
{[%clk 0:01:27.2]} 20. Rb1 {[%clk 0:02:40.1]} 20... Qa8 {[%clk 0:01:23]} 21. Qa4
{[%clk 0:02:37.1]} 21... Nb8 {[%clk 0:01:14.9]} 22. h4 {[%clk 0:02:29.9]} 22...
Kg7 {[%clk 0:00:58.3]} 23. Bf4 {[%clk 0:02:28.2]} 23... Nc6 {[%clk 0:00:53.4]}
24. Rb6 {[%clk 0:02:27.2]} 24... Nb4 {[%clk 0:00:51.4]} 25. Rb1 {[%clk
0:02:24.3]} 25... Rb8 {[%clk 0:00:11.4]} 26. a3 {[%clk 0:02:23.7]} 26... Nc6
{[%clk 0:00:10.9]} 27. Qxc6 {[%clk 0:02:16.7]} 27... bxc6 {[%clk 0:00:09.4]} 28.
Rxb8 {[%clk 0:02:16.5]} 1-0

[Event "*** Titled Tuesday Blitz"]
[Site "Chess.com"]
[Date "2020.11.24"]
[Round "4"]
[White "TurboSteen"]
[Black "Margarita2907"]
[Result "1-0"]
[WhiteElo "1982"]
[BlackElo "2234"]
[TimeControl "180+1"]
[EndTime "10:52:58 PST"]
[Termination "TurboSteen won by resignation"]

1. e4 {[%clk 0:03:00.9]} 1... c5 {[%clk 0:02:58.9]} 2. Nc3 {[%clk 0:02:46.6]}
2... a6 {[%clk 0:02:57.9]} 3. Nf3 {[%clk 0:02:39.2]} 3... d6 {[%clk 0:02:55.1]}
4. d4 {[%clk 0:02:37.6]} 4... cxd4 {[%clk 0:02:56]} 5. Nxd4 {[%clk 0:02:37.7]}
5... Nf6 {[%clk 0:02:56.1]} 6. f4 {[%clk 0:02:35.5]} 6... Nbd7 {[%clk
0:02:46.5]} 7. Bd3 {[%clk 0:02:32.3]} 7... e6 {[%clk 0:02:44]} 8. O-O {[%clk
0:02:30.1]} 8... Be7 {[%clk 0:02:43.4]} 9. Qe2 {[%clk 0:02:28]} 9... O-O {[%clk
0:02:42.2]} 10. Kh1 {[%clk 0:02:25.7]} 10... Qc7 {[%clk 0:02:33.5]} 11. Bd2
{[%clk 0:02:23.8]} 11... b5 {[%clk 0:02:31.9]} 12. Rae1 {[%clk 0:02:20.3]} 12...
Bb7 {[%clk 0:02:30.6]} 13. e5 {[%clk 0:02:16.2]} 13... Nd5 {[%clk 0:02:22.1]}
14. Ne4 {[%clk 0:02:01.9]} 14... dxe5 {[%clk 0:02:12.7]} 15. fxe5 {[%clk
0:01:57.3]} 15... Nc5 {[%clk 0:01:46.5]} 16. Nf6+ {[%clk 0:01:40.1]} 16... Bxf6
{[%clk 0:01:32.3]} 17. Bxh7+ {[%clk 0:01:25.4]} 17... Kxh7 {[%clk 0:01:29.3]}
18. exf6 {[%clk 0:01:24.4]} 18... Nxf6 {[%clk 0:01:24.3]} 19. Rxf6 {[%clk
0:01:22.6]} 19... gxf6 {[%clk 0:01:12.8]} 20. Qh5+ {[%clk 0:01:20.9]} 20... Kg8
{[%clk 0:01:08]} 21. Qg4+ {[%clk 0:01:20.2]} 21... Kh7 {[%clk 0:01:05.4]} 22.
Re3 {[%clk 0:01:19.5]} 1-0

[Event "*** Titled Tuesday Blitz"]
[Site "Chess.com"]
[Date "2020.11.24"]
[Round "4"]
[White "ArjunErigaisi2003"]
[Black "Marty435"]
[Result "1/2-1/2"]
[WhiteElo "2926"]
[BlackElo "2536"]
[TimeControl "180+1"]
[EndTime "10:53:02 PST"]
[Termination "Game drawn by repetition"]

1. Nf3 {[%clk 0:03:00.9]} 1... Nf6 {[%clk 0:02:59.7]} 2. g3 {[%clk 0:03:00.5]}
2... d5 {[%clk 0:02:59.9]} 3. Bg2 {[%clk 0:03:00.7]} 3... e6 {[%clk 0:03:00.6]}
4. O-O {[%clk 0:03:01.2]} 4... Be7 {[%clk 0:03:01.5]} 5. d3 {[%clk 0:03:01]}
5... O-O {[%clk 0:03:02.1]} 6. Nbd2 {[%clk 0:03:01.5]} 6... c5 {[%clk 0:03:01]}
7. e4 {[%clk 0:03:01.7]} 7... Nc6 {[%clk 0:03:01.9]} 8. Qe2 {[%clk 0:03:01.9]}
8... b6 {[%clk 0:02:57.8]} 9. Re1 {[%clk 0:03:00.5]} 9... Bb7 {[%clk 0:02:54.8]}
10. h4 {[%clk 0:02:58.9]} 10... a5 {[%clk 0:02:47]} 11. c3 {[%clk 0:02:55.7]}
11... a4 {[%clk 0:02:34.8]} 12. e5 {[%clk 0:02:52.1]} 12... Nd7 {[%clk
0:02:34.4]} 13. Nf1 {[%clk 0:02:51.3]} 13... b5 {[%clk 0:02:29]} 14. a3 {[%clk
0:02:45.7]} 14... b4 {[%clk 0:02:19.9]} 15. N1h2 {[%clk 0:02:44.7]} 15... Na5
{[%clk 0:02:00.7]} 16. Bf4 {[%clk 0:02:39.9]} 16... Nb3 {[%clk 0:01:58.5]} 17.
Rad1 {[%clk 0:02:38.7]} 17... bxa3 {[%clk 0:01:56.5]} 18. bxa3 {[%clk
0:02:39.6]} 18... Qa5 {[%clk 0:01:53.8]} 19. Qc2 {[%clk 0:02:39.9]} 19... Rfc8
{[%clk 0:01:47.4]} 20. h5 {[%clk 0:02:39.1]} 20... c4 {[%clk 0:01:45.8]} 21. d4
{[%clk 0:02:33.2]} 21... Bxa3 {[%clk 0:01:40.2]} 22. Ng5 {[%clk 0:02:32.1]}
22... Nf8 {[%clk 0:01:39.2]} 23. h6 {[%clk 0:02:31.1]} 23... g6 {[%clk
0:01:35.3]} 24. Ng4 {[%clk 0:02:30.7]} 24... Be7 {[%clk 0:01:34.5]} 25. Nf3
{[%clk 0:02:21]} 25... Qd8 {[%clk 0:01:27.7]} 26. Qa2 {[%clk 0:02:12.8]} 26...
Bc6 {[%clk 0:01:19.7]} 27. Rb1 {[%clk 0:02:11.6]} 27... a3 {[%clk 0:01:17.7]}
28. Bf1 {[%clk 0:02:10.1]} 28... Ba4 {[%clk 0:01:03.3]} 29. Be2 {[%clk
0:02:05.2]} 29... Nd7 {[%clk 0:01:02.9]} 30. Bd1 {[%clk 0:02:03.6]} 30... Ra6
{[%clk 0:00:55.7]} 31. Kg2 {[%clk 0:02:02.9]} 31... Rcc6 {[%clk 0:00:45.2]} 32.
Qe2 {[%clk 0:02:01.8]} 32... Rcb6 {[%clk 0:00:42.6]} 33. Qa2 {[%clk 0:01:58.3]}
33... Rc6 {[%clk 0:00:39.8]} 34. Qe2 {[%clk 0:01:56.7]} 34... Rcb6 {[%clk
0:00:39.9]} 35. Qa2 {[%clk 0:01:54.3]} 35... Rc6 {[%clk 0:00:37]} 1/2-1/2

[Event "*** Titled Tuesday Blitz"]
[Site "Chess.com"]
[Date "2020.11.24"]
[Round "4"]
[White "Sanyura"]
[Black "MIJuanReyesRosa"]
[Result "1-0"]
[WhiteElo "2533"]
[BlackElo "2084"]
[TimeControl "180+1"]
[EndTime "10:53:03 PST"]
[Termination "Sanyura won on time"]

1. d4 {[%clk 0:03:00.7]} 1... g6 {[%clk 0:02:57.6]} 2. Nf3 {[%clk 0:03:00.1]}
2... Bg7 {[%clk 0:02:53.9]} 3. h4 {[%clk 0:03:00.4]} 3... h5 {[%clk 0:02:44.9]}
4. c4 {[%clk 0:02:54.7]} 4... c6 {[%clk 0:02:42.2]} 5. e4 {[%clk 0:02:54]} 5...
d5 {[%clk 0:02:40.5]} 6. e5 {[%clk 0:02:48.5]} 6... Nh6 {[%clk 0:02:28.1]} 7.
Nc3 {[%clk 0:02:45.9]} 7... O-O {[%clk 0:02:21.3]} 8. Bxh6 {[%clk 0:02:42.8]}
8... Bxh6 {[%clk 0:02:20.7]} 9. cxd5 {[%clk 0:02:42.3]} 9... cxd5 {[%clk
0:02:20.3]} 10. Qb3 {[%clk 0:02:42.8]} 10... e6 {[%clk 0:01:51.3]} 11. Bd3
{[%clk 0:02:41.8]} 11... Nc6 {[%clk 0:01:47.9]} 12. O-O {[%clk 0:02:39.3]} 12...
Na5 {[%clk 0:01:37.8]} 13. Qc2 {[%clk 0:02:38.7]} 13... Qe7 {[%clk 0:01:20.9]}
14. b4 {[%clk 0:02:33.9]} 14... Nc6 {[%clk 0:01:03]} 15. a3 {[%clk 0:02:33.5]}
15... Bd7 {[%clk 0:01:00.7]} 16. Nb5 {[%clk 0:02:25.5]} 16... Rac8 {[%clk
0:00:54.8]} 17. Qb1 {[%clk 0:02:21.3]} 17... a6 {[%clk 0:00:19.9]} 18. Nd6
{[%clk 0:02:20.9]} 18... Rc7 {[%clk 0:00:19.7]} 19. a4 {[%clk 0:02:19.4]} 19...
Na7 {[%clk 0:00:07.6]} 20. b5 {[%clk 0:02:19]} 20... axb5 {[%clk 0:00:05.6]} 21.
axb5 {[%clk 0:02:19.9]} 21... Nc8 {[%clk 0:00:04.4]} 22. Ra7 {[%clk 0:02:05.2]}
22... Nxd6 {[%clk 0:00:03.2]} 23. exd6 {[%clk 0:02:05.1]} 23... Qxd6 {[%clk
0:00:02.7]} 24. Bxg6 {[%clk 0:02:05.7]} 1-0